Cogmind - Beta 14 @@@ ROGUE MODE // 2024.12.31 @ 10:34:35 Player: DreamCore Result: Destroyed by G-47 Trooper with Particle Gun Performance ------------- Evolutions (2) 1000 Regions Visited (4) 800 Robots Destroyed (23) 115 Value Destroyed (550) 550 Prototype IDs (0) 0 Alien Tech Used (0) 0 Bonus (200) 200 TOTAL SCORE: 2665 Bonus ------- Entered Garrisons 200 Cogmind --------- Core Integrity 0/550 Matter 300/300 Energy 97/100 System Corruption 0% Temperature Cool (27) Movement Core (50) Location -8/Garrison Parts ------- > --- POWER (2) -------- (None) > --- PROPULSION (4) --- (None) > --- UTILITY (3) ------ Visual Processing Unit Signal Interpreter > --- WEAPON (2) ------- Power Maul > --- INVENTORY (5) ---- Light Nuclear Core Carbon-fiber Leg Carbon-fiber Leg Particle Gun Light Assault Rifle Peak State ------------ > --- POWER ------------ Light Ion Engine > --- PROPULSION ------- Flight Unit Flight Unit Flight Unit VTOL Module > --- UTILITY ---------- Structural Scanner Visual Processing Unit Signal Interpreter > --- WEAPON ----------- Light Assault Rifle Power Maul > --- INVENTORY -------- Light Nuclear Core Carbon-fiber Leg Carbon-fiber Leg Particle Gun Datajack [Rating: 16] Favorites ----------- Power Light Ion Engine Engine Light Ion Engine Power Core Light Nuclear Core Propulsion Flight Unit Leg Aluminum Leg Wheel Wheel Flight Unit Flight Unit Utility Signal Interpreter Device Sensor Array Storage Small Storage Unit Processor Signal Interpreter Weapon Medium Laser Energy Gun Medium Laser Energy Cannon Light EM Pulse Cannon Ballistic Gun Assault Rifle Impact Weapon Power Maul Special Melee Weapon Datajack Build | -11 -10 -9 -8 -8 ------- Run | Yrd Mat Mat Mat Gar Slots Evolved 4 | . . 2 2 . Power 1 | . . . 1 . Propulsion 2 | . . 1 1 . Utility 1 | . . 1 . . Weapon . | . . . . . Parts Attached 34 | . 10 3 19 2 Power 6 | . 1 . 5 . Engine 3 | . 1 . 2 . Core 3 | . . . 3 . Reactor . | . . . . . Propulsion 15 | . 5 1 9 . Treads . | . . . . . Leg 2 | . . . 2 . Wheel 2 | . 2 . . . Hover . | . . . . . Flight 11 | . 3 1 7 . Utility 7 | . 4 1 2 . Device 3 | . 1 1 1 . Storage 1 | . 1 . . . Processor 3 | . 2 . 1 . Hackware . | . . . . . Protection . | . . . . . Artifact . | . . . . . Weapon 6 | . . 1 3 2 Energy Gun 1 | . . . 1 . Energy Cannon 1 | . . 1 . . Ballistic Gun 2 | . . . 2 . Ballistic Cannon . | . . . . . Launcher . | . . . . . Special Weapon . | . . . . . Impact Weapon 1 | . . . . 1 Slashing Weapon . | . . . . . Piercing Weapon . | . . . . . Special Melee Weapon 1 | . . . . 1 Unidentified Prototypes . | . . . . . Parts Lost 14 | . . . 7 7 Power 2 | . . . 1 1 Propulsion 7 | . . . 3 4 Utility 2 | . . . 1 1 Weapon 3 | . . . 2 1 Highest Loss Streak 7 | . . . 6 7 To Critical Strikes . | . . . . . Average Slot Usage (%) 86 | . 95 92 79 76 Engine 10 | . 14 11 8 7 Leg 1 | . . . 5 . Wheel 5 | . 19 . . . Flight 20 | . 8 33 21 26 Device 11 | . 5 15 16 8 Storage 4 | . 15 . . . Processor 8 | . 3 11 9 18 Energy Gun 9 | . 14 11 6 . Energy Cannon 2 | . . . 6 . Ballistic Gun 8 | . 14 10 4 4 Peak Build Rating 16 | . 8 10 14 16 Average Rating 9 | . 6 8 10 13 On Entrance 8 | 6 6 7 10 13 Naked Turns . | . . . . . Heaviest Build 16 | 14 16 11 15 8 Greatest Support 26 | 20 26 12 20 16 Greatest Overweight (x) 4 | . 3 . 4 . Average Overweight (x) . | . . . . . Largest Inventory Capacity 8 | . 8 5 5 5 Average Capacity 5 | . 7 5 5 5 Most Carried 8 | . 8 5 5 5 Average Carried 5 | . 6 4 4 5 Final Capacity 8 | 8 5 5 5 5 Final Carried 6 | 6 5 5 5 5 Class Distribution -------------------- 39% | Mutant 29% | Scavenger-Scout 11% | Scavenger-Mutant 9% | Scavenger-Sprinter 5% | Skirmisher 3% | Sprinter Dominant Class ---------------- Mutant | -10/Materials Scavenger-Mutant | -9/Materials Scavenger-Scout | -8/Materials Scavenger-Sprinter | -8/Garrison Resources | -11 -10 -9 -8 -8 ----------- Run | Yrd Mat Mat Mat Gar Matter Collected 656 | 190 132 . 283 51 Remotely . | . . . . . Salvage Created 723 | . 117 . 477 129 Parts 37 | . 10 . 24 3 Haulers Intercepted 1 | . . . 1 . Recyclers Shooed . | . . . . . Parts Field Recycled . | . . . . . Retrieved Matter . | . . . . . Parts Self-Destructed . | . . . . . Prevented . | . . . . . Kills | -11 -10 -9 -8 -8 ------- Run | Yrd Mat Mat Mat Gar Combat Hostiles Destroyed 16 | . 4 . 9 3 Melee 1 | . . . . 1 Guns 12 | . 4 . 8 . Cannons 1 | . . . 1 . Classes Destroyed 7 | . 3 . 4 . Worker 3 | . 1 . 2 . Hauler 1 | . . . 1 . Operator 1 | . . . 1 . Watcher 2 | . 2 . . . Swarmer 7 | . 4 . 3 . Grunt 8 | . . . 5 3 Sentry 1 | . . . 1 . Best Kill Streak 6 | . 3 . 6 3 Combat Bots Only 4 | . 2 . 4 3 Max Kills in Single Turn 1 | . 1 . 1 1 Gunslinging . | . . . . . Exploded . | . . . . . Melee 1 | . . . . 1 Uniques/NPCs Destroyed . | . . . . . Combat | -11 -10 -9 -8 -8 -------- Run | Yrd Mat Mat Mat Gar Hostile Shots Fired 152 | . 26 . 60 66 Missed 40 | . 7 . 14 19 Damage Taken 1478 | . 152 . 628 698 Core 562 | . 6 . 104 452 Absorbed by Shields 12 | . . . . 12 Core Remaining (%) 99 | 100 97 100 . . Volleys Fired 63 | . 13 . 47 3 Largest 2 | . 2 . 2 1 Hottest 106 | . 70 . 106 20 Shots Fired 100 | . 26 . 71 3 Gun 89 | . 26 . 60 3 Cannon 11 | . . . 11 . Launcher . | . . . . . Special . | . . . . . Kinetic 53 | . 13 . 37 3 Thermal 36 | . 13 . 23 . Explosive . | . . . . . Electromagnetic 11 | . . . 11 . Robot Hit Streak 20 | . 3 . 20 1 Robot Miss Streak 4 | . 4 . 2 2 Penetration Max . | . . . . . Secondary Targets . | . . . . . Shots Hit Robots 83 | . 14 . 54 15 Core Hits 32 | . 6 . 25 1 Critical Kills 1 | . . . . 1 Critical Parts Destroyed 2 | . . . . 2 Critical Strikes 8 | . 2 . 3 3 Burn 4 | . 2 . 2 . Destroy 1 | . . . 1 . Smash 3 | . . . . 3 Melee Attacks 17 | . . . . 17 Impact 16 | . . . . 16 Slashing . | . . . . . Piercing . | . . . . . Sneak Attacks 1 | . . . . 1 Combat Hostiles 1 | . . . . 1 Follow-up Attacks . | . . . . . Damage Inflicted 1638 | . 187 . 769 682 Guns 775 | . 174 . 591 10 Cannons 178 | . . . 178 . Explosions . | . . . . . Melee 672 | . . . . 672 Ramming 13 | . 13 . . . Kinetic 453 | . 100 . 343 10 Thermal 322 | . 74 . 248 . Explosive . | . . . . . Electromagnetic 178 | . . . 178 . Impact 672 | . . . . 672 Slashing . | . . . . . Piercing . | . . . . . Highest Corruption . | . . . . . Average Corruption . | . . . . . Corruption Purged . | . . . . . Corruption Blocked . | . . . . . Overload Shots . | . . . . . Overflow Damage 111 | . . . . 111 Projectiles . | . . . . . Explosions . | . . . . . Melee 111 | . . . . 111 Knockbacks 2 | . . . . 2 Impact 2 | . . . . 2 Kinetic . | . . . . . Secondary . | . . . . . Self-Inflicted Damage 6 | . 6 . . . Shots . | . . . . . Rammed 1 | . 1 . . . Targets Rammed 1 | . 1 . . . Kicked . | . . . . . Crushed . | . . . . . Highest Temperature 176 | . 47 . 176 39 Average Temperature 55 | . 14 . 75 17 Received Heat Transfer 774 | . . . 324 450 Siege Activations . | . . . . . Robots Corrupted 2 | . . . . 2 Combat Hostiles 2 | . . . . 2 Parts Fried 7 | . 4 . . 3 Impact Corruptions 4 | . . . . 4 Robots Melted . | . . . . . Combat Hostiles . | . . . . . Parts Melted 4 | . 1 . 3 . Heat Transferred 1258 | . 370 . 888 . Parts Sabotaged . | . . . . . Parts Stolen . | . . . . . Parts Stripped . | . . . . . Power Chain Reactions . | . . . . . Alert | -11 -10 -9 -8 -8 ------- Run | Yrd Mat Mat Mat Gar Peak Influence 258 | . 258 144 252 218 Initial 108 | . . 108 60 43 Average 125 | . 155 119 112 95 Maximum Alert Level 1 | . 1 . 1 1 Low Security (%) 78 | . 58 100 79 94 Level 1 21 | . 41 . 20 5 Level 2 . | . . . . . Level 3 . | . . . . . Level 4 . | . . . . . Level 5 . | . . . . . High Security . | . . . . . Max Security . | . . . . . Squads Dispatched . | . . . . . Investigation . | . . . . . Extermination . | . . . . . Reinforcement . | . . . . . Assault . | . . . . . Garrison . | . . . . . Intercept . | . . . . . Searches Triggered . | . . . . . Construction Impeded . | . . . . . Haulers Reinforced . | . . . . . Active Scanning Responses . | . . . . . Cargo Convoy Interrupts . | . . . . . Stealth | -11 -10 -9 -8 -8 --------- Run | Yrd Mat Mat Mat Gar Distress Signals 3 | . 1 . 2 . Communications Jammed . | . . . . . Distress Signals . | . . . . . Times Spotted 38 | . 13 1 12 12 Peak Tracking Total 10 | . 4 1 5 10 Tactical Retreats 6 | . 3 1 . 2 Traps | -11 -10 -9 -8 -8 ------- Run | Yrd Mat Mat Mat Gar Traps Triggered 2 | . . . . 2 Indirectly . | . . . . . Trap Hack Attempts . | . . . . . Triggered . | . . . . . Disarmed . | . . . . . Reprogrammed 4 | . 4 . . . Reused 4 | . 4 . . . Traps Extracted . | . . . . . Installed . | . . . . . Triggered 4 | . 4 . . . Machines | -11 -10 -9 -8 -8 ---------- Run | Yrd Mat Mat Mat Gar Machines Disabled . | . . . . . Max in Single Turn . | . . . . . Machines Repaired . | . . . . . Machines Dismantled . | . . . . . Machines Sabotaged . | . . . . . Overloaded Fab Kills . | . . . . . Hacking | -11 -10 -9 -8 -8 --------- Run | Yrd Mat Mat Mat Gar Machines Accessed 8 | . 2 1 3 2 Terminals 6 | . 2 1 1 2 Fabricators . | . . . . . Repair Stations . | . . . . . Recycling Units 1 | . . . 1 . Scanalyzers . | . . . . . Garrison Access 1 | . . . 1 . Total Hacks 15 | . 5 2 4 4 Successful 9 | . 3 1 3 2 Failed 6 | . 2 1 1 2 Catastrophic 1 | . 1 . . . Database Lockouts . | . . . . . Manual 4 | . 1 2 1 . Terminals 13 | . 5 2 2 4 Fabricators . | . . . . . Repair Stations . | . . . . . Recycling Units 1 | . . . 1 . Scanalyzers . | . . . . . Garrison Access 1 | . . . 1 . Terminal Hacks 7 | . 3 1 1 2 Record 1 | . . . 1 . Emergency Access Points 1 | . . . . 1 Locate Traps 1 | . 1 . . . Reprogram Traps 1 | . 1 . . . Zone Layout 2 | . 1 1 . . Security Stations 1 | . . . . 1 Fabricator Hacks . | . . . . . Repair Station Hacks . | . . . . . Recycling Unit Hacks 1 | . . . 1 . Report Inventory 1 | . . . 1 . Scanalyzer . | . . . . . Garrison Access Hacks 1 | . . . 1 . Unlock Access 1 | . . . 1 . Unauthorized Hacks . | . . . . . Terminals . | . . . . . Fabricators . | . . . . . Repair Stations . | . . . . . Recycling Units . | . . . . . Scanalyzers . | . . . . . Garrison Access . | . . . . . Data Cores Recovered 1 | . . . 1 . Used . | . . . . . Hacking Detections 5 | . 1 . 2 2 Full Trace Events . | . . . . . Feedback Events . | . . . . . Feedback Blocked . | . . . . . Robot Schematics Acquired . | . . . . . Robots Built . | . . . . . Authchips . | . . . . . Time . | . . . . . Total Robot Build Rating . | . . . . . Part Schematics Acquired . | . . . . . Parts Built . | . . . . . Authchips . | . . . . . Time . | . . . . . Total Part Build Rating . | . . . . . Parts Repaired . | . . . . . Time . | . . . . . Parts Recycled . | . . . . . Recycled Matter . | . . . . . Retrieved Matter . | . . . . . Retrieved Components . | . . . . . Parts Scanalyzed . | . . . . . Part Schematics Acquired . | . . . . . Parts Damaged . | . . . . . Bothacking | -11 -10 -9 -8 -8 ------------ Run | Yrd Mat Mat Mat Gar Used RIF Installer . | . . . . . Robots Hacked 1 | . . . . 1 Non-combat . | . . . . . Combat 1 | . . . . 1 Robot Hacks Applied 1 | . . . . 1 parse_system 1 | . . . . 1 Relay Couplers Released . | . . . . . Fabnet Peak Effective % . | . . . . . Robots Rewired . | . . . . . Allies Hacked . | . . . . . Hacks Repelled . | . . . . . Allies | -11 -10 -9 -8 -8 -------- Run | Yrd Mat Mat Mat Gar Total Allies . | . . . . . Largest Group . | . . . . . Highest-Rated Group . | . . . . . Highest-Rated Ally . | . . . . . Total Orders . | . . . . . Ally Attacks . | . . . . . Total Damage . | . . . . . Kills . | . . . . . Allies Corrupted . | . . . . . Allies Melted . | . . . . . Intel | -11 -10 -9 -8 -8 ------- Run | Yrd Mat Mat Mat Gar Robot Analysis Total . | . . . . . Derelict Logs Recovered . | . . . . . Drone Launches . | . . . . . Drone Recoveries . | . . . . . Exploration | -11 -10 -9 -8 -8 ------------- Run | Yrd Mat Mat Mat Gar Turns Passed 1180 | . 361 232 448 139 Spaces Moved 1007 | 1 300 326 222 158 Core 2 | . . . 2 . Treads . | . . . . . Legs 13 | 1 . . 12 . Wheels 187 | . 187 . . . Hover . | . . . . . Flight 805 | . 113 326 208 158 Fastest Speed 29 | 120 37 34 29 29 Average Speed 46 | 120 71 34 44 29 Slowest Speed 285 | 120 285 34 250 34 Overloaded Moves . | . . . . . Propulsion Burnouts . | . . . . . Robots Hopped 1 | . . . 1 . Cave-ins Triggered . | . . . . . Exploration Rate (%) 23 | 2 34 26 20 34 Regions Visited 4 Branch Regions . Pre-discovered Areas . | . . . . . Known Exits Taken 3 | . 1 1 1 . Unknown Exits Taken 1 | 1 . . . . Scrap Searched . | . . . . . Spaces Dug . | . . . . . Terrain Destroyed . | . . . . . Melee . | . . . . . Projectile . | . . . . . AOE . | . . . . . Terrain Rammed . | . . . . . Walls Destroyed . | . . . . . Machines Disabled . | . . . . . Actions | -11 -10 -9 -8 -8 --------- Run | Yrd Mat Mat Mat Gar Total 1577 | . 418 446 497 216 Wait 410 | . 88 115 193 14 Move 1002 | . 299 325 220 158 Hop 1 | . . . 1 . Pick Up 13 | . 3 2 8 . Fast Attach 11 | . 2 1 7 1 Attach 9 | . . 2 7 . Detach 1 | . . . 1 . Swap 14 | . 8 . 5 1 Drop 14 | . 4 1 8 1 Fire 63 | . 13 . 47 3 Melee 17 | . . . . 17 Ram 1 | . 1 . . . Kick . | . . . . . Crush . | . . . . . Escape Stasis 21 | . . . . 21 Rewire . | . . . . . Trap . | . . . . . Miscellaneous . | . . . . . Route ------- -11/Scrapyard -10/Materials -9/Materials -8/Materials -8/Garrison History --------- Turn | Location | Event 1 | -11/Scrapyard | Discovered new exit (range 0) 1 | -11/Scrapyard | Entered Materials 300 | -10/Materials | Build established: Mutant 356 | -10/Materials | Discovered new exit (range 4) 362 | -10/Materials | Identified exit to Materials 362 | -10/Materials | Entered another Materials area 362 | -9/Materials | Evolved 2 slots: Propulsion x1, Utility x1 585 | -9/Materials | Discovered new exit (range 3) 586 | -9/Materials | Identified exit to Materials 594 | -9/Materials | Entered another Materials area 594 | -8/Materials | Evolved 2 slots: Power x1, Propulsion x1 810 | -8/Materials | Build established: Scavenger-Scout 972 | -8/Materials | Lost 6 parts (1p2n1u2w) 1042 | -8/Materials | Identified exit to Garrison 1042 | -8/Materials | Entered Garrison 1086 | -8/Garrison | Triggered checkpoint 1090 | -8/Garrison | Learned Materials security intel 1166 | -8/Garrison | Core integrity fell below 50% 1176 | -8/Garrison | Core integrity fell below 20% 1181 | -8/Garrison | Destroyed by G-47 Trooper with Particle Gun Last Messages --------------- 01132_ Flight Unit destroyed. Garrison Door activated. 01137_ Connecting with Garrison Terminal... >>Access(Emergency) Found 35 emergency access points. Map updated. 01143_ Flight Unit destroyed. 01143_ G-50 Soldier suffers critical hit (Smash). 01143_ Destroyed Hvy. Laser. 01143_ G-50 Soldier system corrupted by crushing effect. 01144_ G-50 Soldier system terminally corrupted. 01144_ Carbon-fiber Leg fried. 01147_ VTOL Module destroyed. 01153_ G-47 Trooper suffers critical hit (Smash). 01153_ G-47 Trooper destroyed. 01157_ Lgt. Ion Engine destroyed. 01159_ Critical hit (Burn: +37). 01161_ Datajack destroyed. 01163_ Flight Unit destroyed. 01173_ Structural Scanner destroyed. Map ----- +----------------------------------------------------+ | ?????????????????????????????????????????????????? | | ?????????????????????????????????????????????????? | | ?????????????????????????????????????????????????? | | ?????????????????????????????????????????????????? | | ?????????????????????????????????????????????????? | | ?????????????????????????????????????????????????? | | ?????????????????????????????????????????????????? | | ?????????????????????????????????????????????????? | | ?????????????????????????????????????????????????? | | ?????????????????????????????????????????????????? | | ?????????????????????????????????????????????????? | | ?????????????????????????????????????????????????? | | ?????????????????????????????????????????????????? | | ?????????????????????????????????????????????????? | | ?????????????????????????????????????????????????? | | ?????????????????????????????????????????????????? | | ?????????????????????????????????????????????????? | | ?????????????????????????????????????????????????? | | ?????????????????????????????????????????????????? | | ?????????????????????????????????????????????????? | | ?????????????????????????????????????????????????? | | ?????????????????????????????????????????????????? | | ??????????# ###??????????????????????????????????? | | ??????????? ##############????????????????? | | ????????????????# *%[ g #????????????????? | | ????????????????# ^@% g #????????????????? | | ????????????????#+######g##### #????????????????? | | ???????????????????????# ????# #????????????+???? | | ????????????+??????????#?????# #????????????????? | | ?????????????????????????????# #????????????????? | | ????????????????????????????## #?????????+??????? | | ????????????????????????????#T #???????? #??????? | | ????????????????????????????## #??????? #??????? | | ??????????????????????+?????## ##""""## ##?????? | | ????????????????????????????# ###?+?? | | ????????????????????????????+ ? | | ????????????????????????????# ? | | ??????????????????????+?????# ## ## ####??? | | ????????????????????????????# ## ## #?????? | | ???????????????????????????? "?????? | | ???????????????????????????? "?????? | | ???????????????????????????? "?????? | | ??????????????????????????? "?????? | | ????????######?????????????## ## ## #?????? | | ????????#/// #????########### ## ## ###???? | | ????????#/ [###### ?? | | ????????# + ?? | | ????????#! ###### ##+##### ##??+?? | | ????????#!!!!#????# #??????## ##""""## ##?????? | | ????????###+##????# #???????# #??????? #??????? | +----------------------------------------------------+ Best States ------------- Heat Dissipation 45 Energy Generation 19 Energy Capacity 250 Matter Stores 300 Matter Capacity 400 Sight Range 18 Robot Scan Range 14 Terrain Scan Density 10 Evasion (%) 64 Item Schematics ----------------- None Robot Schematics ------------------ None Fabricated ------------ Nothing Alien Tech Used ----------------- None Achievements -------------- None Challenges ------------ None Game ------ Seed CompactExoskeletonBarrier Manual? 0 Play Time 00:36:11 Cumulative 28.8 hours Start 2024.12.31 @ 09:53:24 End 2024.12.31 @ 10:34:35 Sessions 1 Manual Loads 0 Difficulty Rogue Special Mode None Game No. 44 Rogue 44 Adventurer 0 Explorer 0 Win Type - Total 0 Types 0/0/0/0/0/0/0/0/0 Lore% 17 Gallery% 26 Achievement% 23 Wizard Run 0 Options --------- Layout 1 ASCII 0 Keyboard 0 Movement Mouse Keybinds 0 Fullscreen 0 Font 20/SmallcapsGlow Map View 76x50 Zoom Use 0% Tactical HUD 1 Map Filters NONE Filters NONE Steam 1 RUN: 8d587a56-2721-48e3-b7ca-2c2e18ef171d